bitfinex/quotes_ETHUSD_20220101
["timestamp","ask_amount","ask_price","bid_price","bid_amount"]
[1641054796977,1.33657,3742.4,3742.1,0.0073895]
[1641054797178,0.66824,3742.5,3742.1,0.0073895]
[1641054797780,0.66824,3742.5,3742.1,1.75081015]
[1641054798220,0.66824,3742.5,3742.2,0.00682108]
[1641054798822,0.66824,3742.5,3741.7,0.0096632]
[1641054799024,0.66824,3742.5,3741.7,1.75308385]
[1641054799223,1.0,3742.8,3741.7,1.75308385]
[1641054799424,1.05857998,3742.2,3741.8,0.00909477]
[1641054800032,1.387,3743.1,3741.7,0.0096632]
[1641054800237,1.387,3743.1,3741.7,1.75308385]
[1641054800428,0.66822,3742.4,3741.7,1.75308385]
[1641054800627,1.987,3743.1,3741.7,1.75308385]
[1641054800628,1.987,3743.1,3741.8,1.34548477]
[1641054800829,1.33643,3742.7,3741.8,3.08890542]
[1641054801029,1.33643,3742.7,3741.9,0.00852635]
[1641054801432,1.26700563,3742.3,3741.9,0.00852635]
[1641054801632,0.66823,3742.2,3741.9,0.00852635]
[1641054801870,0.66823,3742.2,3741.7,0.0096632]
[1641054802075,1.26700563,3742.3,3741.7,1.3460832]
[1641054802275,1.26700563,3742.3,3741.7,0.0096632]
[1641054802475,1.16700563,3742.3,3741.8,0.00909477]
[1641054802674,1.16700563,3742.3,3741.6,0.01023162]
[1641054802881,1.3363,3743.1,3741.7,1.3363]
[1641054803079,1.3363,3743.1,3742.0,0.66816]
[1641054803475,1.3363,3743.1,3742.1,0.0073895]
[1641054803974,1.06421643,3742.2,3742.1,0.0073895]
[1641054804179,1.3363,3743.1,3742.1,0.0073895]
[1641054804577,3.7642,3743.3,3742.1,0.0073895]
[1641054804778,6.7397,3743.2,3742.0,3.08757858]
[1641054804976,3.072,3743.2,3742.4,0.66809]
[1641054805178,1.17344256,3742.6,3742.4,0.66809]
[1641054805382,3.7048,3743.3,3742.5,0.00511581]
[1641054805635,1.33619,3743.4,3742.5,0.00511581]
[1641054805829,0.66811,3743.0,3742.5,0.00511581]
[1641054807435,0.00113685,3743.6,3742.5,1.35357089]
[1641054807833,0.00113685,3743.6,3742.6,0.00454739]
[1641054808038,0.00113685,3743.6,3742.6,0.67255559]
[1641054808336,1.14894978,3743.1,3743.0,2.41139065]
[1641054810081,0.00113685,3743.6,3743.0,2.41139065]
[1641054810479,0.00113685,3743.6,3743.1,0.00170527]
[1641054810682,0.66913685,3743.6,3743.1,0.66967527]
[1641054811081,1.0188549,3743.3,3743.2,0.00113685]
[1641054812184,1.0188549,3743.3,3743.2,1.7445575]
[1641054812783,1.0188549,3743.3,3743.2,0.00113685]
[1641054819181,1.0188549,3743.3,3742.9,0.00284212]
[1641054820734,0.66806,3743.2,3742.9,0.00284212]
[1641054821534,1.0188549,3743.3,3742.9,0.00284212]
[1641054822840,1.0188549,3743.3,3742.9,0.67086212]
[1641054823241,1.0188549,3743.3,3743.0,0.00227369]
[1641054827189,0.6975142,3744.4,3743.0,0.30227369]
[1641054827388,0.06113959,3744.6,3743.1,0.387]
[1641054827589,0.0022737,3743.8,3743.1,0.687]
[1641054827792,0.0022737,3743.8,3743.2,2.12846103]
[1641054828135,0.00170527,3743.7,3743.3,0.687]
[1641054828336,0.00170527,3743.7,3743.4,2.79508248]
[1641054828539,0.00113685,3743.6,3743.5,0.387]
[1641054828744,0.00113685,3743.6,3743.5,4.48204418]
[1641054829342,3.685e-05,3743.6,3743.5,20.13204418]
[1641054829734,0.06113857,3744.4,3743.6,6.15]
[1641054829937,0.06113857,3744.4,3743.5,20.13204418]
[1641054829938,0.06113857,3744.4,3744.0,0.66764]
[1641054830139,0.06113857,3744.4,3744.2,0.66764]
[1641054830338,0.06113857,3744.4,3744.3,7.80732857]
[1641054830538,0.06113857,3744.4,3744.3,8.80732857]
[1641054830837,0.06568596,3744.4,3744.3,9.10732857]
[1641054831240,0.00454739,3744.4,3744.3,9.10732857]
[1641054831882,0.00454739,3744.4,3744.3,10.19247885]
[1641054835292,0.00454739,3744.4,3744.3,11.24247885]
[1641054836543,0.00454739,3744.4,3744.3,10.19247885]
[1641054838949,0.00454739,3744.4,3744.3,9.10732857]
[1641054839781,0.00454739,3744.4,3744.3,7.80732857]
[1641054840183,0.00454739,3744.4,3744.3,2.70732857]
[1641054841192,0.00454739,3744.4,3744.3,5.65732857]
[1641054841587,0.00454739,3744.4,3744.3,7.25732857]
[1641054841786,0.00454739,3744.4,3744.3,4.30732857]
[1641054843242,1.03222624,3745.6,3744.4,6.15]
[1641054843445,1.03222624,3745.6,3744.9,0.6675]
[1641054843640,1.03222624,3745.6,3745.1,1.3349568]
[1641054843641,0.00568423,3745.4,3745.1,1.3349568]
[1641054843844,0.00568423,3745.4,3745.2,1.87947084]
[1641054844045,0.00511581,3745.3,3745.2,2.17947084]
[1641054845145,0.00511581,3745.3,3745.2,4.72947084]
[1641054845547,0.00511581,3745.3,3745.2,5.72947084]
[1641054846148,0.00511581,3745.3,3745.2,3.17947084]
[1641054847698,1.03222624,3745.6,3745.2,3.17947084]
[1641054847895,1.03222624,3745.6,3745.2,3.84692084]
[1641054848096,1.03222624,3745.6,3745.3,1.0]
[1641054848296,1.03222624,3745.6,3745.4,2.1921163]
[1641054848497,1.03222624,3745.6,3745.4,2.7921163]
[1641054848696,0.99240466,3745.5,3745.4,2.7921163]
[1641054848897,0.99240466,3745.5,3745.4,0.987]
[1641054849300,0.99240466,3745.5,3745.4,2.71029292]
[1641054850299,0.99240466,3745.5,3745.4,0.987]
[1641054850500,0.99240466,3745.5,3745.4,0.387]
[1641054850742,0.99240466,3745.5,3745.2,0.66745]
[1641054851742,0.99240466,3745.5,3745.2,2.37710341]
[1641054852344,0.99240466,3745.5,3745.2,0.66745]
[1641054852749,0.99240466,3745.5,3745.1,0.66748]
[1641054854486,0.99240466,3745.5,3745.2,2.81432418]
[1641054854679,0.99240466,3745.5,3745.3,1.66745]
[1641054854878,0.99240466,3745.5,3745.4,6.037]
[1641054855079,0.99240466,3745.5,3745.4,7.337]
[1641054855284,1.07578771,3745.9,3745.6,5.85]
[1641054855481,1.07578771,3745.9,3745.7,3.67657322]
[1641054855682,1.07578771,3745.9,3745.8,15.65]
[1641054855880,1.07578771,3745.9,3745.8,16.337]
[1641054856080,1.07806141,3745.9,3745.8,17.337]
[1641054856480,0.00230949,3746.0,3745.9,6.15]
[1641054856683,0.00230949,3746.0,3745.9,25.51493643]
[1641054858328,0.00230949,3746.0,3745.9,3.71493643]
[1641054863988,0.91646276,3746.3,3746.0,0.00034908]
[1641054864189,0.91646276,3746.3,3746.0,3.99395876]
[1641054864387,1.01720087,3746.1,3746.0,3.99395876]
[1641054864588,1.01720087,3746.1,3746.0,4.29395876]
[1641054868634,1.01720087,3746.1,3746.0,6.74932959]
[1641054869683,1.01720087,3746.1,3746.0,6.01365791]
[1641054870184,1.01720087,3746.1,3746.0,4.29395876]
[1641054870583,1.01720087,3746.1,3746.0,5.53365876]
[1641054870783,1.01720087,3746.1,3746.0,5.83365876]
[1641054870990,1.04940659,3746.6,3746.2,16.31718]
[1641054871187,1.04940659,3746.6,3746.3,14.71571171]
[1641054871390,0.98448897,3747.6,3746.5,6.15]
[1641054871589,0.98448897,3747.6,3747.0,0.66703]
[1641054871788,0.98448897,3747.6,3747.1,3.6442163]
[1641054871989,0.98448897,3747.6,3747.1,3.9442163]
[1641054872190,1.07120786,3747.2,3747.1,5.9112463]
[1641054872389,1.07120786,3747.2,3747.1,2.65403]
[1641054872598,1.07120786,3747.2,3747.1,1.987]
[1641054872992,1.07120786,3747.2,3747.1,0.387]
[1641054873630,2.26595647,3747.2,3747.1,0.387]
[1641054874533,2.26595647,3747.2,3747.1,0.687]
[1641054874731,2.26595647,3747.2,3747.1,2.68253857]
[1641054874931,2.26595647,3747.2,3747.1,2.67287965]
[1641054875136,2.26595647,3747.2,3747.1,2.67839559]
[1641054875331,2.26595647,3747.2,3747.1,2.69051735]
[1641054875733,2.26595647,3747.2,3747.1,0.987]
[1641054876135,2.26595647,3747.2,3747.1,0.387]
[1641054878600,2.26595647,3747.2,3746.8,1.33454]
[1641054879002,0.00568424,3747.1,3746.8,1.33454]
[1641054879403,0.00511582,3747.0,3746.8,1.33454]
[1641054879805,0.00454739,3746.9,3746.8,1.33454]
[1641054880639,0.00454739,3746.9,3746.8,3.04048659]
[1641054880842,0.00454739,3746.9,3746.8,3.64048659]
[1641054881041,0.00454739,3746.9,3746.8,4.64048659]
[1641054881247,0.00454739,3746.9,3746.8,1.93454]
[1641054882046,0.00454739,3746.9,3746.8,1.33454]
[1641054882348,0.00454739,3746.9,3746.4,0.0607884]
[1641054882748,0.00397897,3746.8,3746.4,0.0607884]
[1641054883145,1.28616916,3746.6,3746.4,0.0607884]
[1641054883347,1.28616916,3746.6,3746.3,0.66736]
[1641054883547,0.0022737,3746.5,3746.3,0.96736]
[1641054883948,0.00170528,3746.4,3746.3,0.66736]
[1641054884390,0.00170528,3746.4,3746.2,0.3]
[1641054884591,0.00170528,3746.4,3746.0,2.96937]
[1641054884793,0.00113685,3746.3,3746.0,2.61937]
[1641054885190,0.0022737,3746.5,3746.0,2.61937]
[1641054885596,0.00170528,3746.4,3746.0,2.61937]
[1641054886092,0.00113685,3746.3,3746.0,2.61937]
[1641054886396,1.23730601,3746.6,3745.6,1.33482]
[1641054886594,1.23730601,3746.6,3746.1,0.00113685]
[1641054886595,1.90476601,3746.6,3746.1,0.00113685]
[1641054886799,1.90476601,3746.6,3745.7,2.09943314]
[1641054886800,1.23678762,3745.8,3745.7,2.09943314]
[1641054886998,1.23678762,3745.8,3745.7,0.00341054]
[1641054887397,1.23678762,3745.8,3745.6,0.00397896]
[1641054887999,1.23678762,3745.8,3745.4,0.60511581]
[1641054888259,1.23678762,3745.8,3745.5,0.00454739]
[1641054889856,1.23678762,3745.8,3745.5,0.67206739]
[1641054890258,1.23678762,3745.8,3745.6,0.00397896]
[1641054890659,0.00113685,3746.5,3745.6,1.33882896]
[1641054890862,0.00113685,3746.5,3745.7,1.79249409]
[1641054891058,0.00113685,3746.5,3745.7,1.79590463]
[1641054891262,0.00113685,3746.5,3746.0,0.66741]
[1641054891887,1.27737448,3746.4,3746.0,0.66741]
[1641054892490,1.27737448,3746.4,3746.1,0.3]
[1641054892991,1.27737448,3746.4,3746.1,2.35439452]
[1641054893192,1.27737448,3746.4,3746.2,0.3]
[1641054894096,1.27737448,3746.4,3745.9,0.66745]
[1641054894295,1.27737448,3746.4,3745.8,0.00284212]
[1641054894498,1.27737448,3746.4,3746.0,0.00170527]
[1641054894796,1.27737448,3746.4,3745.7,0.00341054]
[1641054895296,1.94487448,3746.4,3745.7,0.00341054]
[1641054896140,2.61245168,3746.4,3745.4,0.00511581]
[1641054896535,2.61245168,3746.4,3745.2,0.00625266]
[1641054896536,0.66759,3745.9,3745.2,0.00625266]
[1641054897140,1.09039386,3745.8,3745.0,1.70962585]
[1641054897347,1.09039386,3745.8,3744.9,2.67013]
[1641054897348,1.09039386,3745.8,3745.1,0.00682108]
[1641054897642,1.09039386,3745.8,3745.0,0.0073895]
[1641054897843,0.66763,3745.7,3745.0,0.0073895]
[1641054898641,1.34284631,3745.1,3745.0,1.71782303]
[1641054898842,1.34284631,3745.1,3745.0,0.6073895]
[1641054899243,1.34284631,3745.1,3745.0,0.0073895]
[1641054900001,1.34284631,3745.1,3745.0,2.31100386]
[1641054900201,7.6207,3746.2,3745.0,2.31100386]
[1641054900404,0.66756,3746.1,3745.1,0.6675325]
[1641054900608,7.6207,3746.2,3745.2,1.74102014]
[1641054900807,7.6207,3746.2,3745.2,2.0472728]
[1641054901117,7.6207,3746.2,3745.3,0.30568423]
[1641054901118,3.7023,3746.2,3745.3,0.30568423]
[1641054901309,1.11911768,3746.3,3745.4,1.75365016]
[1641054901510,1.11911768,3746.3,3745.7,0.66746]
[1641054901707,1.11911768,3746.3,3745.8,2.16411512]
[1641054901905,1.11911768,3746.3,3745.8,2.46695724]
[1641054902108,1.11911768,3746.3,3745.9,0.00227369]
[1641054902411,2.7,3746.2,3745.9,0.66967369]
[1641054902606,2.7,3746.2,3746.0,0.66738]
[1641054902808,2.7,3746.2,3746.1,0.3]
[1641054903650,2.7,3746.2,3746.0,2.37079718]
[1641054903846,2.7,3746.2,3746.0,0.00170527]
[1641054904245,2.7,3746.2,3745.8,0.00284212]
[1641054904447,2.7,3746.2,3745.8,1.72318999]
[1641054904646,2.7,3746.2,3745.8,0.00284212]
[1641054904847,2.7,3746.2,3745.9,0.00227369]
[1641054905050,3.36755,3746.2,3745.8,0.00284212]
[1641054905249,3.36755,3746.2,3745.6,0.00397896]
[1641054905449,3.36755,3746.2,3745.4,0.00511581]
[1641054907691,1.04237741,3744.9,3744.8,0.67615635]
[1641054908091,1.04237741,3744.9,3744.8,0.96763]
[1641054908291,0.66763,3745.6,3744.8,0.96763]
[1641054908694,0.66763,3745.6,3744.9,0.00795793]
[1641054909290,0.66763,3745.6,3744.9,0.01852023]
[1641054909491,1.37792423,3745.0,3744.9,0.01852023]
[1641054909693,1.37792423,3745.0,3744.9,0.0105623]
[1641054912053,0.66764,3745.6,3744.9,0.0105623]
[1641054912453,0.66764,3745.6,3745.0,0.0073895]
[1641054913656,4.32706,3745.9,3745.0,0.0073895]
[1641054913657,0.66767,3745.4,3745.0,0.0073895]
[1641054914993,0.66767,3745.4,3745.1,0.01056244]
[1641054915394,0.66767,3745.4,3745.2,0.00625266]
[1641054920450,0.66767,3745.4,3745.3,0.01056216]
[1641054920850,0.66767,3745.4,3745.3,0.01624639]
[1641054921451,5.01767,3745.4,3745.3,0.01624639]
[1641054924895,0.66767,3745.4,3745.3,0.01624639]
[1641054925094,1.09969656,3745.5,3745.3,0.01624639]
[1641054925297,0.69714502,3745.8,3745.3,0.01624639]
[1641054925496,10.491,3746.2,3745.4,0.00511581]
[1641054925497,6.6537,3746.2,3745.4,0.00511581]
[1641054926143,6.6537,3746.2,3745.5,0.66748]
[1641054926344,7.75866697,3746.2,3745.6,0.6674713]
[1641054926542,1.10496697,3746.2,3745.6,0.67145026]
[1641054926743,1.10496697,3746.2,3745.7,0.00341054]
[1641054928246,1.10496697,3746.2,3745.4,0.60511581]
[1641054928645,1.10496697,3746.2,3745.5,0.67204069]
[1641054928844,1.10496697,3746.2,3745.6,0.66749]
[1641054929044,1.10496697,3746.2,3745.6,0.67146896]
[1641054929247,1.10496697,3746.2,3745.7,0.00341054]
[1641054932097,1.10496697,3746.2,3745.7,0.30341054]
[1641054932300,1.10496697,3746.2,3745.7,0.60341054]
[1641054932502,1.10496697,3746.2,3745.8,0.00284212]
[1641054933142,3.2708,3746.7,3745.8,0.00284212]
[1641054933343,3.2708,3746.7,3745.8,3.65284212]
[1641054933743,3.2708,3746.7,3745.8,0.00284212]
[1641054934146,1.06340139,3746.5,3745.8,0.00284212]
[1641054934344,1.06340139,3746.5,3745.6,0.67147896]
[1641054934546,1.06340139,3746.5,3745.7,0.00341054]
[1641054935848,1.73088139,3746.5,3745.7,0.00341054]
[1641054937094,1.73088139,3746.5,3745.7,1.25841358]
[1641054937292,1.73088139,3746.5,3745.7,0.00341054]
[1641054937496,1.73088139,3746.5,3745.8,0.00284212]
[1641054937793,3.2708,3746.7,3745.7,0.00341054]
[1641054937994,3.2708,3746.7,3745.7,1.76998058]
[1641054938194,0.06079062,3747.1,3745.7,0.69041054]
[1641054938392,0.06079062,3747.1,3745.8,6.15284212]
[1641054938595,0.06079062,3747.1,3745.8,23.48984212]
[1641054939195,1.27119773,3747.1,3745.8,24.77691518]
[1641054939397,1.27119773,3747.1,3745.8,9.12691518]
[1641054939595,1.27119773,3747.1,3745.8,11.56745031]
[1641054939999,1.27119773,3747.1,3746.7,0.66728]
[1641054940396,0.00397897,3747.0,3746.7,0.66728]
[1641054940843,0.00341054,3746.9,3746.7,0.66728]
[1641054941243,0.00284212,3746.8,3746.7,0.66728]
[1641054942043,1.16324923,3747.1,3746.7,0.66728]
[1641054942444,0.00113685,3747.0,3746.7,0.66728]
[1641054943046,0.00113685,3747.0,3746.7,2.3703252]
[1641054943244,0.00113685,3747.0,3746.7,0.66728]
[1641054944246,0.00113685,3747.0,3746.8,1.70329309]
[1641054944499,0.00113685,3747.0,3746.7,0.66728]
[1641054944701,2.70113685,3747.0,3746.8,1.72631704]
[1641054945101,2.70113685,3747.0,3746.7,0.66728]
[1641054945903,0.00113685,3747.0,3746.7,0.66728]
[1641054946502,0.00113685,3747.0,3746.8,0.01055778]
[1641054949740,0.66852685,3747.0,3746.8,0.01055778]
[1641054949937,0.66712685,3747.0,3746.8,0.01055778]
[1641054954296,0.3,3746.9,3746.8,0.01055778]
[1641054954694,0.96712685,3747.0,3746.8,0.01169463]
[1641054954893,0.66712685,3747.0,3746.8,0.01169463]
[1641054958660,0.96712685,3747.0,3746.8,0.01169463]
[1641054958861,7.78516,3746.9,3746.8,0.01169463]
[1641054959064,8.78516,3746.9,3746.8,0.01169463]
[1641054959813,10.59236482,3746.9,3746.8,0.01169463]
[1641054960515,10.29236482,3746.9,3746.8,0.01169463]
[1641054961113,8.48516,3746.9,3746.8,0.01169463]
[1641054962718,10.29236482,3746.9,3746.8,0.01169463]
[1641054963151,10.29236482,3746.9,3746.0,0.06078851]
[1641054963152,1.3351998,3746.5,3746.0,0.06078851]
[1641054963351,6.15,3746.8,3746.0,0.06078851]
[1641054963352,0.66761,3746.4,3746.0,0.06078851]
[1641054963556,3.75,3746.1,3745.4,1.70324863]
[1641054963953,3.75,3746.1,3744.4,7.5816]
[1641054963954,3.75,3746.1,3745.5,0.00341054]
[1641054964352,3.75,3746.1,3745.2,0.00511581]
[1641054964353,0.66771,3745.7,3745.2,0.00511581]
[1641054964551,0.66769,3745.4,3745.2,0.00511581]
[1641054965756,1.3354052,3745.4,3744.9,0.00682108]
[1641054965953,0.6677,3745.2,3744.9,0.00682108]
[1641054967407,0.6677,3745.2,3744.8,0.0073895]
[1641054968007,1.3354427,3745.2,3744.8,0.0073895]
[1641054968209,0.66773,3745.0,3744.8,0.0073895]
[1641054968810,0.66773,3745.0,3744.7,0.00795792]
[1641054969208,0.66773,3745.0,3744.7,1.71120655]
[1641054969616,0.66773,3745.0,3744.8,0.0073895]
[1641054972164,0.66773,3745.0,3744.7,0.00795792]
[1641054972563,1.42089276,3744.8,3744.7,0.00795792]
[1641054972761,2.08864276,3744.8,3744.6,0.00852635]
[1641054975796,2.08864276,3744.8,3744.3,0.01023162]
[1641054977203,3.42433806,3744.8,3744.1,0.01136846]
[1641054977404,0.66788,3744.5,3744.1,0.01136846]
[1641054978447,0.66788,3744.5,3744.0,0.01193689]
[1641054978746,1.66788,3744.5,3744.0,0.01193689]
[1641054978946,2.6720194,3744.4,3744.0,0.01193689]
[1641054979148,0.66805,3744.2,3744.0,0.01193689]
[1641054979346,2.00415,3744.2,3744.0,0.01193689]
[1641054979746,7.43805581,3744.1,3743.8,0.01307373]
[1641054979947,0.6680503,3744.0,3743.8,0.01307373]
[1641054980246,1.3361103,3744.0,3743.8,0.01307373]
[1641054980648,0.6680503,3744.0,3743.4,0.01534743]
[1641054980847,0.6680383,3743.8,3743.4,0.01534743]
[1641054981151,0.66805,3743.6,3743.4,0.01534743]
[1641054981450,0.66805,3743.6,3743.3,0.01591585]
[1641054982309,0.69748738,3743.8,3743.3,1.71916448]
[1641054982609,1.29273267,3743.4,3743.3,1.70324863]
[1641054983010,1.29273267,3743.4,3743.3,1.71916448]
[1641054984611,1.29273267,3743.4,3743.3,3.48706458]
[1641054984812,1.29273267,3743.4,3743.3,1.78381595]
[1641054985014,1.29273267,3743.4,3743.3,0.01591585]
[1641054985417,3.99273267,3743.4,3743.0,0.01762112]
[1641054986453,3.99273267,3743.4,3742.9,0.01818955]
[1641054986651,3.99273267,3743.4,3742.8,0.01875797]
[1641054986853,3.99273267,3743.4,3742.7,1.71756258]
[1641054986854,3.99273267,3743.4,3742.7,1.73688897]
[1641054987057,3.99273267,3743.4,3742.8,0.01875797]
[1641054988054,3.99273267,3743.4,3742.9,0.01056833]
[1641054988455,3.99273267,3743.4,3743.0,0.01762112]
[1641054993645,3.99273267,3743.4,3743.1,0.01056805]
[1641054993849,3.70045004,3741.8,3741.7,5.81040283]
[1641054994053,3.70045004,3741.8,3741.0,2.00405]
[1641054994054,1.01367009,3740.8,3740.7,8.0358098]
[1641054994245,0.049938,3740.7,3740.4,0.06127816]
[1641054994451,0.78521484,3740.8,3740.7,6.8]
[1641054994648,0.78521484,3740.8,3739.6,8.30002278]
[1641054994649,0.78521484,3740.8,3739.6,7.36708703]
[1641054994844,1.78521484,3740.8,3739.7,0.01875798]
[1641054995043,0.387,3740.7,3739.7,0.01875798]
[1641054995246,0.66859,3740.2,3739.7,0.01875798]
[1641054995648,0.387,3740.1,3739.7,0.01875798]
[1641054995848,0.387,3740.1,3739.3,2.1023432]
[1641054995849,6.15,3740.0,3739.3,2.1023432]
[1641054996046,6.15,3740.0,3739.4,0.02046325]
[1641054996047,0.66874,3739.8,3739.4,0.02046325]
[1641054996244,0.66874,3739.6,3739.4,0.02046325]
[1641054996446,1.05574,3739.6,3739.4,0.02046325]
[1641054997098,1.05574,3739.6,3738.7,0.00568423]
[1641054997302,1.05574,3739.6,3738.4,0.77448423]
[1641054997303,4.7,3739.5,3738.4,0.77448423]
[1641054997500,4.70454739,3739.5,3738.5,0.00113685]
[1641054997698,0.00397896,3739.4,3738.5,0.00113685]
[1641054998099,0.00341054,3739.3,3738.5,0.00113685]
[1641054998499,0.00284212,3739.2,3738.5,1.13064746]
[1641054998899,0.00227369,3739.1,3738.5,1.43064746]
[1641054999102,0.00227369,3739.1,3738.5,17.38064746]
[1641054999300,0.00170527,3739.0,3738.6,0.387]
[1641054999501,0.00170527,3739.0,3738.6,1.38976842]
[1641054999703,0.00916847,3740.7,3738.9,1.33681]
[1641055000007,0.00916847,3740.7,3739.1,0.5]
[1641055000207,0.00860004,3740.6,3739.2,2.18351952]
[1641055000661,0.00803162,3740.5,3740.0,1.13717774]
[1641055000859,0.00803162,3740.5,3740.1,2.18351952]
[1641055001058,0.0074632,3740.4,3740.2,0.387]
[1641055001458,0.00689477,3740.3,3740.2,6.487]
[1641055001658,0.00689477,3740.3,3740.2,9.02645774]
[1641055004600,0.00689477,3740.3,3740.2,3.22645774]
[1641055005004,0.00689477,3740.3,3740.2,2.92645774]
[1641055006500,2.70689477,3740.3,3740.2,2.92645774]
[1641055007404,2.70689477,3740.3,3740.2,5.52645774]
[1641055007806,2.70689477,3740.3,3740.2,2.92645774]
[1641055008648,2.70689477,3740.3,3740.2,2.62645774]
[1641055008845,2.70689477,3740.3,3739.6,1.84397221]
[1641055009046,2.70689477,3740.3,3739.6,1.83227508]
[1641055009244,2.70689477,3740.3,3739.3,0.387]
[1641055009245,0.00632635,3740.2,3739.4,1.97273953]
[1641055009645,0.00575793,3740.1,3739.4,1.97273953]
[1641055009846,0.00575793,3740.1,3739.4,3.09188063]
[1641055010046,2.7,3740.3,3739.4,3.09188063]
[1641055010047,0.0051895,3740.0,3739.4,3.09188063]
[1641055010248,0.0051895,3740.0,3739.5,0.3]
[1641055010455,0.00462108,3739.9,3739.6,2.08723597]
[1641055010648,0.00462108,3739.9,3739.6,2.38723597]
[1641055010848,0.00405266,3739.8,3739.6,2.38723597]
[1641055011052,0.00405266,3739.8,3739.7,7.73528612]
[1641055011251,2.7,3740.3,3740.0,1.09315867]
[1641055011449,2.7,3740.3,3740.1,1.98730401]
[1641055011649,0.00632635,3740.2,3740.1,1.98730401]
[1641055011897,0.00632635,3740.2,3740.1,1.93730401]
[1641055012302,0.00632635,3740.2,3739.7,2.04914908]
[1641055012702,0.00575793,3740.1,3739.7,2.04914908]
[1641055013105,0.0051895,3740.0,3739.7,2.04914908]
[1641055013307,0.0051895,3740.0,3739.8,1.1695217]
[1641055013606,2.7,3740.3,3739.9,1.91432581]
[1641055013806,2.7,3740.3,3739.9,2.51432581]
[1641055014006,0.00632635,3740.2,3739.9,2.51432581]
[1641055014406,2.7,3740.3,3739.9,2.51432581]
[1641055014407,0.00575793,3740.1,3739.9,2.51432581]
[1641055014608,0.00575793,3740.1,3740.0,2.04614761]
[1641055014808,2.7,3740.3,3740.0,2.04614761]
[1641055015109,0.00632635,3740.2,3740.0,2.04614761]
[1641055015408,0.00575793,3740.1,3740.0,2.34614761]
[1641055022621,0.00575793,3740.1,3740.0,2.1554279]
[1641055022821,0.00575793,3740.1,3740.0,1.8554279]
[1641055023023,0.00575793,3740.1,3740.0,2.1554279]
[1641055023648,0.00575793,3740.1,3740.0,3.36309922]
[1641055023849,0.60296531,3741.6,3740.8,0.00366766]
[1641055024052,0.60296531,3741.6,3740.9,0.387]
[1641055024253,0.60296531,3741.6,3740.9,0.687]
[1641055024449,0.60296531,3741.6,3740.9,2.87051952]
[1641055024651,0.60296531,3741.6,3740.9,3.17051952]
[1641055025052,0.60296531,3741.6,3740.9,0.687]
[1641055025854,0.60296531,3741.6,3740.9,0.387]
[1641055026056,0.60296531,3741.6,3741.0,1.97592363]
[1641055026254,0.60296531,3741.6,3741.1,0.387]
[1641055026455,0.60296531,3741.6,3741.2,1.89604842]
[1641055026754,0.60296531,3741.6,3741.2,2.49604842]
[1641055027201,3.30296531,3741.6,3741.2,2.49604842]
[1641055027603,3.30296531,3741.6,3741.3,0.387]
[1641055027801,3.30296531,3741.6,3741.4,1.83167663]
[1641055028003,3.30296531,3741.6,3741.5,0.387]
[1641055028403,3.31149166,3741.6,3741.5,0.387]
[1641055029107,7.69443061,3741.6,3741.5,0.387]
[1641055029307,7.69443061,3741.6,3740.8,0.00366766]
[1641055029308,0.6683993,3741.3,3740.8,0.00366766]
[1641055029703,0.00625266,3741.2,3741.1,0.0605554]
[1641055030102,6.15625266,3741.2,3741.1,0.0605554]
[1641055030502,7.15625266,3741.2,3741.1,0.0605554]
[1641055030753,10.19415575,3741.2,3741.1,0.0605554]
[1641055031356,0.66848,3741.0,3740.8,0.00366766]
[1641055031755,6.15454738,3740.9,3740.8,0.00366766]
[1641055033260,9.19245047,3740.9,3740.8,0.00366766]
[1641055035498,3.04245047,3740.9,3740.8,0.00366766]
[1641055039784,3.04245047,3740.9,3740.8,0.01424233]
[1641055045012,6.49245047,3740.9,3740.8,0.01424233]
[1641055045650,3.04245047,3740.9,3740.8,0.01424233]
[1641055049407,0.00454738,3740.9,3740.8,0.01424233]
[1641055051006,0.00454738,3740.9,3740.8,2.36424233]
[1641055051609,0.00454738,3740.9,3740.8,1.32131837]
[1641055053012,0.00454738,3740.9,3740.8,1.92131837]
[1641055053256,0.00454738,3740.9,3740.8,0.01424233]
[1641055054253,3.04291652,3740.9,3740.8,0.01424233]
[1641055055254,0.00454738,3740.9,3740.8,0.01424233]
[1641055055960,6.82295738,3740.9,3740.8,0.01424233]
[1641055056155,9.86128288,3740.9,3740.8,0.01424233]
[1641055059910,10.86128288,3740.9,3740.8,0.01424233]
[1641055060115,11.16128288,3740.9,3740.8,0.01424233]
[1641055060310,8.1559734,3740.8,3740.6,0.8059]
[1641055060509,6.71864,3740.7,3740.6,0.8059]
[1641055060753,6.72205054,3740.7,3740.6,0.8059]
[1641055060952,0.9983175,3740.6,3740.3,0.53576745]
[1641055061154,1.9983175,3740.6,3740.3,0.53576745]
[1641055061355,0.00227369,3740.5,3740.3,0.53576745]
[1641055061754,2.6670075,3740.6,3740.3,0.53576745]
[1641055061755,6.15170527,3740.4,3740.3,0.53576745]
[1641055061956,6.82038117,3740.4,3740.3,0.53576745]
[1641055062156,7.82038117,3740.4,3740.3,0.53576745]
[1641055062762,9.18606749,3740.4,3740.3,0.53576745]
[1641055062958,12.22439299,3740.4,3740.3,0.53576745]
[1641055063157,12.32519299,3740.4,3740.3,0.53576745]
[1641055064058,12.32439299,3740.4,3740.3,0.53576745]
[1641055064260,12.22439299,3740.4,3740.3,0.53576745]
[1641055066616,12.52439299,3740.4,3740.3,0.53576745]
[1641055067021,12.62679299,3740.4,3740.3,0.53576745]
[1641055067220,11.26190667,3740.4,3740.3,0.53576745]
[1641055067422,11.26030667,3740.4,3740.3,0.53576745]
[1641055067721,13.85870667,3740.4,3740.3,0.53576745]
[1641055068458,12.55870667,3740.4,3740.3,0.53576745]
[1641055068659,13.55870667,3740.4,3740.3,0.53576745]
[1641055069159,14.9229007,3740.4,3740.3,0.53576745]
[1641055069460,7.7729007,3740.4,3740.3,0.53576745]
[1641055069661,6.40870667,3740.4,3740.3,0.53576745]
[1641055077161,7.40870667,3740.4,3740.3,0.53576745]
[1641055077968,6.40870667,3740.4,3740.3,0.53576745]
[1641055083455,3.37038117,3740.4,3740.3,0.53576745]
[1641055084057,4.37038117,3740.4,3740.3,0.53576745]
[1641055084261,0.373269,3740.3,3739.0,6.15]
[1641055084461,0.66879,3739.4,3739.0,6.15]
[1641055084660,0.66879,3739.4,3739.0,5.90568424]
[1641055084861,1.79558098,3739.3,3739.0,5.90568424]
[1641055085061,1.79671782,3739.3,3738.8,6.15]
[1641055085464,0.66881,3739.2,3738.8,6.15]
[1641055085661,0.66882,3739.0,3738.8,6.15]
[1641055086461,0.66882,3739.0,3738.6,0.00284211]
[1641055086915,0.66882,3739.0,3738.1,0.00568423]